bitfinex-derivatives/quotes_BTCF0:USTF0_20260131
["timestamp","ask_amount","ask_price","bid_price","bid_amount"]
[1769893856985,0.2923708,77970.0,77946.0,0.28703295]
[1769893857180,0.16529982,77969.0,77946.0,0.28703295]
[1769893857381,0.2923708,77970.0,77946.0,0.28703295]
[1769893857685,0.16529987,77969.0,77946.0,0.28703295]
[1769893857888,0.2353708,77970.0,77946.0,0.28703295]
[1769893858089,0.16529987,77969.0,77949.0,0.012846]
[1769893858285,0.2353708,77970.0,77949.0,0.012846]
[1769893858486,0.16532481,77969.0,77946.0,0.28703295]
[1769893858688,0.2353708,77970.0,77946.0,0.28703295]
[1769893858986,0.16532603,77969.0,77946.0,0.28703295]
[1769893859188,0.012843,77968.0,77946.0,0.28703295]
[1769893859384,0.012841,77981.0,77959.0,0.27418695]
[1769893859590,0.16533771,77980.0,77959.0,0.27418695]
[1769893859790,0.16533771,77979.0,77959.0,0.27418695]
[1769893859991,0.16533771,77978.0,77959.0,0.27418695]
[1769893860291,0.16533771,77977.0,77959.0,0.27418695]
[1769893860484,0.012841,77978.0,77959.0,0.27418695]
[1769893860685,0.012841,77981.0,77959.0,0.27418695]
[1769893860885,0.1653721,77980.0,77959.0,0.27418695]
[1769893861191,0.1653721,77979.0,77959.0,0.27418695]
[1769893861391,0.1653721,77978.0,77959.0,0.27418695]
[1769893861687,0.01284,77984.0,77959.0,0.28703095]
[1769893861890,0.24683669,77978.0,77941.0,0.27418695]
[1769893862093,0.24683669,77971.0,77949.0,0.012846]
[1769893862284,0.25967869,77970.0,77946.0,0.012846]
[1769893862486,0.25576803,77963.0,77937.0,0.443568]
[1769893862688,0.25576803,77956.0,77937.0,0.09248]
[1769893862886,0.25576803,77953.0,77937.0,0.09248]
[1769893863085,0.16541485,77955.0,77937.0,0.09248]
[1769893863086,0.25576803,77951.0,77937.0,0.09248]
[1769893863292,0.16544799,77950.0,77937.0,0.09248]
[1769893863487,0.25576803,77948.0,77937.0,0.09248]
[1769893864190,0.16551744,77947.0,77937.0,0.09248]
[1769893864392,0.25576803,77948.0,77930.0,0.26779807]
[1769893864692,0.16550052,77947.0,77930.0,0.26779807]
[1769893864893,0.25576803,77948.0,77930.0,0.26779807]
[1769893865191,0.14550075,77947.0,77930.0,0.26779807]
[1769893865391,0.25576803,77948.0,77930.0,0.26779807]
[1769893865788,0.012845,77956.0,77930.0,0.26779807]
[1769893865989,0.27790152,77956.0,77930.0,0.26779807]
[1769893866190,0.27790152,77956.0,77930.0,0.28064707]
[1769893866585,0.26879207,77950.0,77912.0,0.27418695]
[1769893866790,0.26879207,77941.0,77918.0,0.012851]
[1769893866987,0.26879207,77948.0,77930.0,0.26779807]
[1769893867390,0.39710741,77948.0,77930.0,0.26779807]
[1769893867792,0.26879207,77947.0,77930.0,0.26779807]
[1769893868292,0.26879207,77943.0,77918.0,0.09248]
[1769893868492,0.26879207,77943.0,77919.0,0.012851]
[1769893869082,0.26879207,77943.0,77921.0,0.01285]
[1769893869884,0.26879207,77943.0,77918.0,0.09248]
[1769893869885,0.26833293,77941.0,77918.0,0.09248]
[1769893870090,0.28118093,77934.0,77916.0,0.00012236]
[1769893870691,0.26833293,77934.0,77916.0,0.00012236]
[1769893871289,0.2671084,77932.0,77910.0,0.26779807]
[1769893871488,0.2799574,77931.0,77906.0,0.105333]
[1769893871689,0.2671084,77928.0,77906.0,0.105333]
[1769893871888,0.2671084,77925.0,77906.0,0.09248]
[1769893872282,0.2341084,77925.0,77906.0,0.09248]
[1769893872492,0.00012284,77924.0,77894.0,0.28499677]
[1769893872793,0.00012284,77924.0,77903.0,0.012853]
[1769893873090,0.00012284,77924.0,77904.0,0.012853]
[1769893873589,0.00012284,77924.0,77903.0,0.012853]
[1769893873794,0.00012284,77924.0,77902.0,0.012853]
[1769893873996,0.14120487,77923.0,77899.0,0.012854]
[1769893874190,0.24036578,77916.0,77890.0,0.012855]
[1769893874394,0.12835487,77923.0,77890.0,0.012855]
[1769893874395,0.24036578,77912.0,77890.0,0.012855]
[1769893874594,0.24450348,77910.0,77890.0,0.012855]
[1769893875094,0.25735548,77910.0,77884.0,0.012856]
[1769893875291,0.0001012,77911.0,77882.0,0.012857]
[1769893875292,0.24450348,77906.0,77882.0,0.012857]
[1769893875894,0.24450348,77902.0,77877.0,0.012857]
[1769893876094,0.24450348,77900.0,77876.0,0.09248]
[1769893876391,0.24450348,77896.0,77876.0,0.08814258]
[1769893876592,0.24765015,77890.0,77873.0,0.00011193]
[1769893876788,0.24765015,77884.0,77860.0,0.09248]
[1769893876997,0.012857,77880.0,77860.0,0.09248]
[1769893877187,0.24765015,77883.0,77854.0,0.28499677]
[1769893877390,0.24765015,77875.0,77848.0,0.012862]
[1769893877697,0.24765015,77873.0,77846.0,0.28499677]
[1769893877888,0.24765015,77871.0,77844.0,0.012863]
[1769893878085,0.24765015,77869.0,77839.0,0.09248]
[1769893878286,0.26051115,77859.0,77839.0,0.09248]
[1769893878490,0.24778859,77858.0,77839.0,0.09248]
[1769893878694,0.24773988,77857.0,77834.0,0.012865]
[1769893878985,0.34025988,77856.0,77834.0,0.012865]
[1769893879186,0.24773988,77855.0,77834.0,0.012865]
[1769893879389,0.12845957,77857.0,77834.0,0.28499677]
[1769893879693,0.00013844,77858.0,77847.0,0.012862]
[1769893879991,0.33836,77870.0,77847.0,0.012862]
[1769893880195,0.24773988,77869.0,77843.0,0.012863]
[1769893880401,0.24773988,77868.0,77843.0,0.012863]
[1769893880891,0.24667521,77866.0,77846.0,0.012863]
[1769893881398,0.012861,77859.0,77831.0,0.012865]
[1769893881595,0.24667521,77845.0,77816.0,0.00014984]
[1769893881790,0.24667521,77843.0,77816.0,0.00014984]
[1769893882593,0.25866065,77841.0,77816.0,0.01301784]
[1769893883296,0.12848763,77840.0,77816.0,0.01301784]
[1769893883497,0.25866065,77839.0,77816.0,0.01301784]
[1769893884000,0.25866065,77837.0,77816.0,0.01301784]
[1769893884201,0.012864,77838.0,77816.0,0.00014984]
[1769893884202,0.25866065,77834.0,77816.0,0.00014984]
[1769893884396,0.22666065,77834.0,77816.0,0.00014984]
[1769893884596,0.12848928,77833.0,77816.0,0.01301784]
[1769893884897,0.12801653,77833.0,77816.0,0.00014984]
[1769893885102,0.431,77844.0,77823.0,0.28066407]
[1769893885596,0.09256,77860.0,77835.0,0.29786177]
[1769893885795,0.09256,77866.0,77840.0,0.26779807]
[1769893885998,0.9254,77882.0,77841.0,0.012863]
[1769893885999,0.43116,77865.0,77841.0,0.012863]
[1769893886201,0.43116,77865.0,77833.0,0.012865]
[1769893886391,0.22687728,77863.0,77833.0,0.012865]
[1769893886592,0.22667841,77859.0,77832.0,0.09256]
[1769893886797,0.22667841,77857.0,77832.0,0.09256]
[1769893887094,0.22667841,77857.0,77832.0,0.105425]
[1769893887291,0.22667841,77857.0,77836.0,0.012864]
[1769893887495,0.09256,77865.0,77843.0,0.28499677]
[1769893887696,0.09256,77865.0,77844.0,0.012863]
[1769893887903,0.09256,77865.0,77843.0,0.28499677]
[1769893888302,0.012857,77880.0,77854.0,0.28499677]
[1769893888497,0.012858,77877.0,77849.0,0.28499677]
[1769893888802,0.09256,77876.0,77849.0,0.28499677]
[1769893889002,0.09256,77876.0,77850.0,0.012862]
[1769893889202,0.12843152,77875.0,77849.0,0.28499677]
[1769893889602,0.09256,77876.0,77849.0,0.28499677]
[1769893889796,0.012854,77898.0,77869.0,0.29785577]
[1769893890001,0.012854,77896.0,77869.0,0.29785577]
[1769893890197,0.22210748,77894.0,77867.0,0.09256]
[1769893890401,0.012856,77888.0,77867.0,0.09256]
[1769893890601,0.012856,77886.0,77867.0,0.09256]
[1769893890796,0.012858,77878.0,77867.0,0.09256]
[1769893891003,0.22667339,77881.0,77867.0,0.08860694]
[1769893891199,0.22667339,77881.0,77853.0,0.09256]
[1769893891504,0.21467339,77881.0,77853.0,0.09256]
[1769893892106,0.21467339,77881.0,77859.0,0.01286]
[1769893892404,0.33864,77902.0,77865.0,0.28499677]
[1769893892605,0.16919363,77901.0,77869.0,0.28499677]
[1769893892899,0.1284241,77900.0,77875.0,0.28499677]
[1769893893105,0.09256,77904.0,77875.0,0.28499677]
[1769893893300,0.12839442,77899.0,77875.0,0.28499677]
[1769893893506,0.09256,77904.0,77881.0,0.28499677]
[1769893893806,0.09256,77904.0,77883.0,0.012857]
[1769893894696,0.32718027,77904.0,77880.0,0.28065507]
[1769893895005,0.09256,77904.0,77880.0,0.28065507]
[1769893895801,0.105413,77904.0,77880.0,0.28065507]
[1769893896002,0.105413,77904.0,77882.0,0.012857]
[1769893898605,0.071413,77904.0,77882.0,0.012857]
[1769893898804,0.05856,77904.0,77880.0,0.26779807]
[1769893899207,0.05856,77904.0,77884.0,0.012856]
[1769893899408,0.17303147,77903.0,77884.0,0.012856]
[1769893899602,0.05856,77904.0,77884.0,0.012856]
[1769893899803,0.1730305,77903.0,77884.0,0.012856]
[1769893899998,0.05856,77904.0,77881.0,0.012857]
[1769893900208,0.17303217,77903.0,77883.0,0.012856]
[1769893900405,0.17303217,77902.0,77883.0,0.012856]
[1769893900605,0.17303217,77901.0,77883.0,0.012856]
[1769893900908,0.05856,77904.0,77883.0,0.012856]
[1769893901105,0.17313233,77903.0,77883.0,0.012856]
[1769893901300,0.17313233,77902.0,77883.0,0.012856]
[1769893901506,0.17313233,77901.0,77883.0,0.012856]
[1769893901808,0.17313233,77900.0,77883.0,0.012856]
[1769893902010,0.23448967,77892.0,77862.0,0.2882762]
[1769893902202,0.24734567,77888.0,77864.0,0.01286]
[1769893902398,0.17326595,77887.0,77867.0,0.012859]
[1769893902703,0.23448967,77888.0,77867.0,0.012859]
[1769893903008,0.1733679,77887.0,77869.0,0.012859]
[1769893903205,0.1733679,77886.0,77869.0,0.012859]
[1769893903407,0.1733679,77885.0,77869.0,0.012859]
[1769893903709,0.23448967,77888.0,77866.0,0.012859]
[1769893903912,0.17447037,77887.0,77866.0,0.012859]
[1769893904204,0.17447037,77886.0,77869.0,0.012859]
[1769893904410,0.012855,77892.0,77869.0,0.012859]
[1769893904709,0.41135668,77891.0,77869.0,0.012859]
[1769893904906,0.17452202,77890.0,77869.0,0.012859]
[1769893905106,0.17452202,77889.0,77869.0,0.012859]
[1769893905406,0.17452202,77888.0,77869.0,0.012859]
[1769893905607,0.23683466,77891.0,77869.0,0.012859]
[1769893905608,0.17452202,77887.0,77869.0,0.012859]
[1769893905801,0.17452202,77886.0,77869.0,0.012859]
[1769893906002,0.17452202,77885.0,77869.0,0.013859]
[1769893906200,0.24969066,77890.0,77869.0,0.013859]
[1769893906404,0.23683466,77888.0,77869.0,0.001]
[1769893906704,0.11759104,77887.0,77869.0,0.001]
[1769893906902,0.09256,77893.0,77873.0,0.2882762]
[1769893907099,0.09256,77893.0,77869.0,0.001]
[1769893907100,0.012854,77901.0,77881.0,0.2882762]
[1769893907304,0.012853,77904.0,77881.0,0.2882762]
[1769893907500,0.12840596,77900.0,77882.0,0.012857]
[1769893907711,0.012853,77907.0,77885.0,0.2882762]
[1769893907912,0.09256,77908.0,77889.0,0.2882762]
[1769893908101,0.09256,77908.0,77885.0,0.012856]
[1769893908302,0.09256,77908.0,77882.0,0.2882762]
[1769893908507,0.23628682,77910.0,77882.0,0.2882762]
[1769893908710,0.23628682,77910.0,77887.0,0.012856]
[1769893908913,0.23628682,77910.0,77882.0,0.2882762]
[1769893909214,0.23628682,77910.0,77890.0,0.012855]
[1769893909513,0.23628682,77910.0,77887.0,0.012856]
[1769893909714,0.23628682,77910.0,77890.0,0.012855]
[1769893910014,0.23628682,77910.0,77889.0,0.012856]
[1769893910915,0.23628682,77910.0,77893.0,0.012855]
[1769893911115,0.23628682,77910.0,77895.0,0.012855]
[1769893911313,0.23865425,77908.0,77884.0,0.012856]
[1769893911913,0.23865425,77906.0,77886.0,0.012856]
[1769893912418,0.23865425,77906.0,77890.0,0.012855]
[1769893912714,0.23589063,77904.0,77880.0,0.26779807]
[1769893912914,0.23589063,77904.0,77889.0,0.012856]
[1769893913309,0.23589063,77904.0,77891.0,0.012855]
[1769893913710,0.23589063,77904.0,77888.0,0.012856]
[1769893913907,0.17189063,77904.0,77888.0,0.012856]
[1769893914317,0.17189063,77904.0,77890.0,0.012855]
[1769893914717,0.17189063,77904.0,77886.0,0.012856]
[1769893915119,0.17189063,77904.0,77888.0,0.012856]
[1769893915419,0.17189063,77904.0,77885.0,0.012856]
[1769893916116,0.17189063,77904.0,77887.0,0.012856]
[1769893916715,0.16393876,77890.0,77856.0,0.2882762]
[1769893916915,0.16393876,77886.0,77856.0,0.30139316]
[1769893917115,0.16393876,77886.0,77851.0,0.105422]
[1769893917116,0.16393876,77881.0,77851.0,0.09256]
[1769893917316,0.17679576,77879.0,77858.0,0.012861]
[1769893917513,0.012858,77873.0,77851.0,0.09256]
[1769893917719,0.16393876,77866.0,77851.0,0.09256]
[1769893917910,0.012861,77858.0,77837.0,0.09256]
[1769893918116,0.012861,77854.0,77837.0,0.09256]
[1769893918312,0.16393876,77854.0,77837.0,0.09256]
[1769893918715,0.012862,77849.0,77837.0,0.09256]
[1769893918916,0.012864,77839.0,77815.0,0.09256]
[1769893919115,0.17309412,77838.0,77820.0,0.2882762]
[1769893919312,0.14483078,77840.0,77815.0,0.105428]
[1769893919513,0.31780817,77839.0,77815.0,0.105428]
[1769893919721,0.17297739,77838.0,77817.0,0.012867]
[1769893920124,0.30144109,77838.0,77817.0,0.012867]
[1769893920322,0.17297739,77837.0,77817.0,0.012867]
[1769893920524,0.17297739,77837.0,77815.0,0.09256]
[1769893920822,0.17297739,77837.0,77815.0,0.105428]
[1769893921019,0.12297739,77836.0,77817.0,0.012868]
[1769893921214,0.14483078,77839.0,77820.0,0.012867]
[1769893921529,0.12849093,77838.0,77823.0,0.012866]
[1769893921824,0.14653583,77865.0,77837.0,0.2882762]
[1769893922122,0.14653583,77862.0,77831.0,0.2882762]
[1769893922315,0.12849093,77865.0,77847.0,0.012862]
[1769893922518,0.09256,77870.0,77844.0,0.012863]
[1769893922822,0.1284505,77869.0,77844.0,0.012863]
[1769893923021,0.1284505,77869.0,77830.0,0.09256]
[1769893923022,0.09256,77870.0,77841.0,0.2882762]
[1769893923324,0.09256,77870.0,77848.0,0.2882762]
[1769893923526,0.14523169,77881.0,77848.0,0.2882762]
[1769893923724,0.14523169,77881.0,77856.0,0.012861]
[1769893923923,0.12844142,77880.0,77856.0,0.012861]
[1769893924122,0.14523169,77879.0,77845.0,0.09256]
[1769893924323,0.14523169,77874.0,77845.0,0.09256]
[1769893924527,0.14523169,77874.0,77846.0,0.012863]
[1769893924826,0.14775635,77872.0,77846.0,0.012863]
[1769893925227,0.09256,77871.0,77849.0,0.2882762]
[1769893925432,0.14775635,77880.0,77859.0,0.012861]
[1769893925729,0.2209973,77880.0,77862.0,0.01286]
[1769893926031,0.09256,77880.0,77865.0,0.01286]
[1769893927430,0.14775635,77888.0,77861.0,0.29822202]
[1769893927629,0.14775635,77888.0,77866.0,0.012859]
[1769893927930,0.12841503,77887.0,77872.0,0.012858]
[1769893928129,0.0835624,77897.0,77861.0,0.29822202]
[1769893928325,0.0835624,77897.0,77872.0,0.012858]
[1769893928521,0.55960349,77896.0,77872.0,0.012858]
[1769893929032,0.012855,77893.0,77865.0,0.001]
[1769893929230,0.012857,77882.0,77859.0,0.09256]
[1769893929431,0.012857,77882.0,77842.0,0.33864]
[1769893929432,0.09256,77881.0,77844.0,0.105423]
[1769893929637,0.4312,77880.0,77844.0,0.105423]
[1769893930128,0.08497269,77878.0,77844.0,0.105423]
[1769893930627,0.08242532,77873.0,77847.0,0.012863]
[1769893931525,0.08242532,77871.0,77847.0,0.012863]
[1769893932127,0.12843565,77870.0,77847.0,0.012863]
[1769893932328,0.08242532,77869.0,77847.0,0.012863]
[1769893932830,0.08242532,77869.0,77844.0,0.105423]
[1769893933029,0.084675,77862.0,77828.0,0.29822202]
[1769893933334,0.097536,77855.0,77827.0,0.105426]
[1769893933534,0.26281376,77854.0,77827.0,0.105426]
[1769893933832,0.084675,77852.0,77827.0,0.105426]
[1769893934029,0.17813876,77851.0,77827.0,0.105426]
[1769893934229,0.17813876,77850.0,77827.0,0.105426]
[1769893934428,0.084675,77852.0,77827.0,0.105426]
[1769893934632,0.1766115,77851.0,77827.0,0.105426]
[1769893934929,0.1766115,77850.0,77827.0,0.105426]
[1769893935130,0.084675,77852.0,77827.0,0.105426]
[1769893935326,0.1556115,77851.0,77827.0,0.105426]
[1769893935526,0.084675,77852.0,77827.0,0.105426]
[1769893936331,0.084675,77852.0,77829.0,0.012865]
[1769893937536,0.012862,77849.0,77827.0,0.09356]
[1769893937928,0.09028206,77838.0,77812.0,0.29822202]
[1769893938126,0.09028206,77838.0,77827.0,0.001]
[1769893938536,0.012864,77837.0,77827.0,0.001]
[1769893938737,0.09028206,77838.0,77827.0,0.001]
[1769893938937,0.09028206,77838.0,77817.0,0.012867]
[1769893940242,0.09028206,77838.0,77821.0,0.012867]
[1769893940734,0.09028206,77838.0,77817.0,0.012867]
[1769893940932,0.09028206,77838.0,77819.0,0.012867]
[1769893941335,0.09028206,77838.0,77816.0,0.00014984]
[1769893942335,0.08868356,77833.0,77816.0,0.00014984]
[1769893942628,0.012867,77821.0,77800.0,0.0926]
[1769893942832,0.0926,77823.0,77800.0,0.0926]
[1769893943238,0.012866,77827.0,77803.0,0.01287]
[1769893943438,0.00014602,77826.0,77803.0,0.01287]
[1769893943637,0.00014602,77826.0,77800.0,0.0926]
[1769893943837,0.0926,77825.0,77800.0,0.0926]
[1769893944032,0.2211157,77825.0,77801.0,0.01287]
[1769893944538,0.29873085,77825.0,77803.0,0.01287]
[1769893944729,0.31159685,77825.0,77800.0,0.09255]
[1769893944932,0.29873085,77825.0,77801.0,0.01287]
[1769893945137,0.07412525,77823.0,77800.0,0.09255]
[1769893945336,0.07412525,77823.0,77800.0,0.10542]
[1769893945736,0.07412525,77818.0,77800.0,0.09255]
[1769893945939,0.00014984,77817.0,77800.0,0.09255]
[1769893946440,0.00014984,77817.0,77801.0,0.01287]
[1769893946836,0.00014984,77817.0,77800.0,0.09255]
[1769893947038,0.00014984,77817.0,77801.0,0.01287]
[1769893947439,0.00014984,77817.0,77803.0,0.01282]
[1769893947641,0.00014984,77817.0,77800.0,0.10642]
[1769893947836,0.00014984,77817.0,77802.0,0.01287]
[1769893948233,0.00014984,77817.0,77801.0,0.29822202]
[1769893948540,0.00014984,77817.0,77805.0,0.012869]
[1769893948737,0.00014984,77817.0,77803.0,0.01287]
[1769893949242,0.00014984,77817.0,77801.0,0.29822202]
[1769893949243,0.00014984,77817.0,77801.0,0.29922202]
[1769893949844,0.00014984,77817.0,77806.0,0.012869]
[1769893950143,0.03874984,77825.0,77806.0,0.012869]
[1769893950440,0.30448888,77824.0,77806.0,0.012869]
[1769893950643,0.17597318,77823.0,77802.0,0.01287]
[1769893950842,0.1285157,77824.0,77802.0,0.01287]
[1769893950843,0.25057836,77822.0,77802.0,0.01287]
[1769893951034,0.17597318,77821.0,77802.0,0.01287]
[1769893951236,0.17597318,77820.0,77804.0,0.01287]
[1769893951439,0.17597318,77819.0,77804.0,0.01287]
[1769893951638,0.17597318,77818.0,77804.0,0.01287]
[1769893951842,0.07460518,77822.0,77804.0,0.01287]
[1769893952048,0.17592695,77821.0,77804.0,0.01287]
[1769893952244,0.17592695,77820.0,77804.0,0.01287]
[1769893952544,0.012864,77838.0,77816.0,0.29822202]
[1769893952745,0.17587014,77837.0,77818.0,0.29822202]
[1769893952942,0.17587014,77836.0,77820.0,0.31108902]
[1769893953142,0.07825443,77851.0,77822.0,0.29822202]
[1769893953349,0.09264,77847.0,77829.0,0.012865]
[1769893953542,0.09264,77847.0,77831.0,0.012865]
[1769893953743,0.012862,77851.0,77828.0,0.012866]
[1769893953946,0.07825443,77858.0,77828.0,0.29822202]
[1769893954142,0.12848846,77848.0,77833.0,0.012865]
[1769893954341,0.07825443,77858.0,77833.0,0.012865]
[1769893954542,0.1284637,77847.0,77833.0,0.012865]
[1769893954744,0.1284637,77847.0,77835.0,0.012864]
[1769893954948,0.09264,77851.0,77835.0,0.012864]
[1769893955345,0.1284637,77850.0,77835.0,0.012864]
[1769893955748,0.1284637,77850.0,77840.0,0.012864]
[1769893955942,0.1284637,77850.0,77831.0,0.012865]
[1769893956142,0.1284637,77850.0,77815.0,0.09264]
[1769893956143,0.0781931,77847.0,77816.0,0.29822202]
[1769893956449,0.0781931,77844.0,77815.0,0.09264]
[1769893956646,0.0781931,77844.0,77817.0,0.012867]
[1769893956844,0.08201104,77839.0,77815.0,0.09264]
[1769893957045,0.08201104,77839.0,77816.0,0.012868]
[1769893957245,0.012865,77835.0,77810.0,0.012869]
[1769893957446,0.0926,77834.0,77810.0,0.012869]
[1769893957650,0.0926,77834.0,77812.0,0.012868]
[1769893957848,0.12849011,77833.0,77812.0,0.012868]
[1769893958446,0.12410627,77833.0,77815.0,0.2960671]
[1769893958650,0.25561703,77861.0,77834.0,0.012865]
[1769893958846,0.31799204,77863.0,77834.0,0.012865]
[1769893958847,0.01286,77860.0,77834.0,0.012865]
[1769893959151,0.12849754,77847.0,77831.0,0.012865]
[1769893959352,0.012861,77858.0,77831.0,0.012865]
[1769893959556,0.0926,77850.0,77831.0,0.012865]
[1769893959745,0.0926,77850.0,77830.0,0.2960671]
[1769893959944,0.13297505,77850.0,77824.0,0.012866]
[1769893960247,0.04037505,77848.0,77824.0,0.012866]
[1769893960951,0.1284736,77847.0,77818.0,0.2960671]
[1769893961349,0.0425319,77849.0,77818.0,0.2960671]
[1769893961542,0.22108103,77848.0,77829.0,0.012865]
[1769893961748,0.22108103,77848.0,77825.0,0.012866]
[1769893961951,0.0926,77848.0,77825.0,0.012866]
[1769893962151,0.12848103,77847.0,77825.0,0.012866]
[1769893962846,0.12848103,77847.0,77820.0,0.012867]
[1769893963046,0.12848103,77847.0,77820.0,0.2986484]
[1769893963445,0.12848103,77847.0,77823.0,0.2857814]
[1769893963845,0.12848103,77847.0,77812.0,0.0926]
[1769893963846,0.12848103,77847.0,77824.0,0.2986474]
[1769893964445,0.09348102,77847.0,77824.0,0.2986474]
[1769893964642,0.09348102,77847.0,77824.0,0.2857814]
[1769893965052,0.10634402,77847.0,77824.0,0.2857814]
[1769893965247,0.16552501,77846.0,77824.0,0.2857814]
[1769893965454,0.16552501,77845.0,77824.0,0.2857814]
[1769893965749,0.17838801,77844.0,77824.0,0.2867814]
[1769893965953,0.16552501,77843.0,77824.0,0.001]
[1769893966652,0.16552501,77843.0,77820.0,0.012867]
[1769893967055,0.16552501,77842.0,77820.0,0.012867]
[1769893967349,0.16552501,77841.0,77820.0,0.012867]
[1769893967551,0.16552501,77840.0,77820.0,0.012867]
[1769893967755,0.16552501,77839.0,77822.0,0.012867]
[1769893967953,0.16552501,77838.0,77822.0,0.012867]
[1769893968153,0.04179293,77844.0,77822.0,0.012867]
[1769893968355,0.16556547,77843.0,77822.0,0.012867]
[1769893968549,0.16556547,77842.0,77822.0,0.2996281]
[1769893968754,0.03971667,77835.0,77814.0,0.012868]
[1769893968955,0.03971667,77825.0,77801.0,0.2867611]
[1769893969154,0.012867,77822.0,77801.0,0.2867611]
[1769893969455,0.16506083,77821.0,77801.0,0.2867611]
[1769893969658,0.16506083,77821.0,77801.0,0.2996311]
[1769893969861,0.1650651,77820.0,77798.0,0.012871]
[1769893970155,0.03971667,77824.0,77814.0,0.001]
[1769893970156,0.1650651,77819.0,77814.0,0.001]
[1769893970354,0.1650651,77818.0,77814.0,0.001]
[1769893970551,0.012867,77819.0,77814.0,0.001]
[1769893970753,0.16506522,77818.0,77798.0,0.012871]
[1769893970955,0.16506522,77817.0,77800.0,0.01287]
[1769893971256,0.16506522,77817.0,77798.0,0.28707353]
[1769893971257,0.012867,77821.0,77798.0,0.28707353]
[1769893971459,0.1650577,77820.0,77798.0,0.28707353]
[1769893971755,0.29357836,77819.0,77799.0,0.01287]
[1769893971952,0.03877939,77817.0,77796.0,0.0926]
[1769893972161,0.03877939,77811.0,77796.0,0.0926]
[1769893972352,0.1650577,77810.0,77796.0,0.0926]
[1769893972546,0.1010577,77810.0,77796.0,0.0926]
[1769893972947,0.16748952,77809.0,77784.0,0.28707353]
[1769893973154,0.012869,77807.0,77784.0,0.29994653]
[1769893973351,0.03896556,77808.0,77784.0,0.28707353]
[1769893973548,0.03896556,77808.0,77785.0,0.012873]
[1769893973753,0.03896556,77808.0,77787.0,0.012872]
[1769893974256,0.03896556,77808.0,77785.0,0.28701147]
[1769893974758,0.04055018,77818.0,77787.0,0.28648327]
[1769893974958,0.04055018,77812.0,77787.0,0.28648327]
[1769893975155,0.04055018,77814.0,77785.0,0.012873]
[1769893975357,0.04055018,77814.0,77782.0,0.0926]
[1769893975554,0.04055018,77810.0,77782.0,0.0926]
[1769893975755,0.04055018,77803.0,77782.0,0.0926]
[1769893975960,0.012871,77795.0,77782.0,0.0926]
[1769893976161,0.04055018,77803.0,77782.0,0.0926]
[1769893976162,0.012871,77798.0,77782.0,0.0926]
[1769893976357,0.12853553,77802.0,77787.0,0.001]
[1769893976556,0.04055018,77803.0,77787.0,0.001]
[1769893976761,0.1285537,77801.0,77787.0,0.001]
[1769893977160,0.04055018,77803.0,77782.0,0.0926]
[1769893977353,0.1285537,77802.0,77782.0,0.0926]
[1769893977558,0.04055018,77803.0,77782.0,0.0926]
[1769893977860,0.04037832,77812.0,77786.0,0.28654055]
[1769893978160,0.04037832,77801.0,77782.0,0.0926]
[1769893978766,0.12853635,77800.0,77782.0,0.0926]
[1769893980068,0.06653635,77800.0,77782.0,0.0926]
[1769893980267,0.03954408,77792.0,77764.0,0.37945863]
[1769893980561,0.09264,77804.0,77780.0,0.012874]
[1769893980759,0.03918093,77813.0,77780.0,0.28693968]
[1769893980959,0.012867,77819.0,77779.0,0.09264]
[1769893980960,0.01287,77800.0,77779.0,0.09264]
[1769893981275,0.01287,77800.0,77765.0,0.09264]
[1769893981276,0.03918093,77792.0,77765.0,0.09264]
[1769893981461,0.012872,77788.0,77765.0,0.09264]
[1769893981863,0.03918093,77787.0,77765.0,0.09264]
[1769893982081,0.012873,77786.0,77765.0,0.09264]
[1769893982259,0.03918093,77787.0,77765.0,0.09264]
[1769893982566,0.012874,77781.0,77765.0,0.09264]
[1769893982866,0.012873,77784.0,77765.0,0.09264]
[1769893983066,0.012873,77782.0,77765.0,0.09264]
[1769893983266,0.04588093,77780.0,77757.0,0.01269106]
[1769893983458,0.03300693,77780.0,77751.0,0.012878]
[1769893983665,0.012875,77771.0,77751.0,0.012878]
[1769893983962,0.012875,77771.0,77749.0,0.09264]
[1769893984161,0.04588193,77771.0,77760.0,0.01488408]
[1769893984560,0.012876,77766.0,77749.0,0.09264]
[1769893984760,0.12873325,77770.0,77749.0,0.09264]
[1769893984761,0.12873325,77770.0,77749.0,0.3838747]
[1769893984966,0.012875,77769.0,77749.0,0.2912347]
[1769893985467,0.14147582,77769.0,77749.0,0.2912347]
[1769893985663,0.012876,77766.0,77744.0,0.2912347]
[1769893986466,0.012876,77764.0,77743.0,0.09264]
[1769893986669,0.012877,77762.0,77743.0,0.09264]
[1769893986869,0.012877,77762.0,77744.0,0.001]
[1769893987372,0.007877,77762.0,77744.0,0.001]
[1769893987571,0.007877,77762.0,77743.0,0.09264]
[1769893989575,0.007877,77762.0,77744.0,0.29027985]
[1769893989875,0.02629589,77767.0,77744.0,0.29027985]
[1769893990264,0.012877,77760.0,77744.0,0.29027985]
[1769893991269,0.105556,77763.0,77744.0,0.29027985]
[1769893991479,0.012876,77765.0,77744.0,0.29027985]
[1769893991669,0.012877,77763.0,77744.0,0.29027985]
[1769893992066,0.105557,77763.0,77744.0,0.29027985]
[1769893992472,0.012877,77760.0,77744.0,0.29027985]
[1769893992671,0.09268,77763.0,77744.0,0.29027985]
[1769893992871,0.09268,77763.0,77743.0,0.09264]
[1769893993068,0.12861157,77762.0,77743.0,0.09264]
[1769893993268,0.12861157,77762.0,77744.0,0.28933342]
[1769893993472,0.012876,77767.0,77744.0,0.28933342]
[1769893993774,0.12861322,77763.0,77744.0,0.30221342]
[1769893993972,0.012877,77762.0,77744.0,0.28933342]
[1769893994177,0.012877,77762.0,77743.0,0.09264]
[1769893994377,0.00013243,77770.0,77752.0,0.28933342]
[1769893994676,0.1286124,77769.0,77752.0,0.28933342]
[1769893995073,0.012876,77766.0,77752.0,0.28933342]
[1769893995276,0.1414884,77769.0,77752.0,0.28933342]
[1769893995478,0.012876,77769.0,77752.0,0.28933342]
[1769893995778,0.012876,77767.0,77752.0,0.28933342]
[1769893996772,0.00013243,77770.0,77752.0,0.29033342]
[1769893997179,0.12860164,77769.0,77752.0,0.29033342]
[1769893997577,0.12860164,77769.0,77752.0,0.28933342]
[1769893998073,0.012876,77768.0,77752.0,0.28933342]
[1769893998271,0.12860164,77769.0,77746.0,0.30135882]